fUSD/lending_fUSD_20240118
["ID","MTS","AMOUNT","RATE_DAILY","PERIOD"]
[312078419,1705602608695,10473.6551094,0.00021602,2]
[312078420,1705602610318,856.6984896,0.00021602,2]
[312078421,1705602614370,312.8751174,0.00021602,2]
[312078422,1705602614556,447.51741754,0.0001926,2]
[312078423,1705602616190,704.088908,0.00021602,2]
[312078424,1705602618811,234.90330055,0.00021602,2]
[312078425,1705602628275,357.88786976,0.00021602,2]
[312078426,1705602630283,1070.78652453,0.00021602,2]
[312078432,1705602631615,-155.0,0.00021603,7]
[312078433,1705602631627,-1050.58506121,0.00021603,2]
[312078434,1705602631637,-2549.52289889,0.00021603,2]
[312078435,1705602632002,-1972.83445768,0.00021603,2]
[312078436,1705602632545,447.51741754,0.0001926,2]
[312078437,1705602633144,-1358.5,0.00021603,2]
[312078438,1705602633157,-610.18376816,0.00021603,2]
[312078439,1705602633169,-400.0,0.00021603,2]
[312078440,1705602633272,-7652.70891006,0.00021603,2]
[312078441,1705602633283,-953.20160742,0.00021603,2]
[312078442,1705602633299,-7113.24655824,0.00021603,2]
[312078443,1705602633309,-33377.27737078,0.00021603,2]
[312078444,1705602633319,-755.47818953,0.00021604,2]
[312078445,1705602633329,-192.81681622,0.00021605,2]
[312078446,1705602633339,-118.7594893,0.00021621,2]
[312078447,1705602633352,-251.48001433,0.00021621,2]
[312078448,1705602633361,-294.39673489,0.00021622,2]
[312078449,1705602633370,-66.392716,0.00021623,2]
[312078450,1705602633382,-2082.5,0.00021623,2]
[312078451,1705602633395,-870.25017859,0.00021623,2]
[312078452,1705602633419,-1101.74064,0.00021623,2]
[312078453,1705602633431,-124.82249336,0.00021623,2]
[312078454,1705602633443,-247.65089304,0.00021624,2]
[312078455,1705602633452,-156.5988209,0.00021624,2]
[312078456,1705602633461,-75.653807,0.00021624,2]
[312078457,1705602633472,-546.69999,0.00021624,2]
[312078458,1705602633493,-687.257,0.00021624,2]
[312078459,1705602633504,-538.60315006,0.00021624,2]
[312078460,1705602633513,-294.29684994,0.00021624,2]
[312078461,1705602633524,-301.48,0.00021624,2]
[312078462,1705602633535,-320.37915006,0.00021624,2]
[312078463,1705602633545,-230.58874034,0.00021641,2]
[312078464,1705602633554,-211.7421096,0.00021642,2]
[312078465,1705602633565,-440.0,0.00021642,2]
[312078466,1705602633577,-406.76,0.00021642,2]
[312078467,1705602633587,-532.8,0.00021642,2]
[312078468,1705602633599,-444.0,0.00021642,2]
[312078469,1705602633616,-576.57357286,0.00021642,2]
[312078470,1705602633627,-746.41878368,0.00021642,2]
[312078474,1705602638096,-818.51041925,0.00021642,2]
[312078475,1705602638110,-3185.62367316,0.00021643,2]
[312078476,1705602638137,-1108.77575039,0.00021643,2]
[312078477,1705602638150,-336.94337747,0.00021643,2]
[312078478,1705602638160,-369.06372383,0.00021643,2]
[312078479,1705602638192,-1027.65741199,0.00021643,2]
[312078480,1705602638204,-830.38,0.00021643,2]
[312078481,1705602638216,-2397.49621699,0.00021643,2]
[312078482,1705602638225,-813.91,0.00021643,2]
[312078483,1705602638234,-8631.88829035,0.00021644,2]
[312078484,1705602638246,-1368.11170965,0.00021644,2]
[312078485,1705602638255,-157.35,0.00021679,2]
[312078486,1705602638265,-523.1620339,0.00021723,2]
[312078487,1705602638275,-157.93,0.00021738,2]
[312078488,1705602638284,-158.72,0.00021738,2]
[312078489,1705602638293,-615.44,0.00021748,2]
[312078490,1705602638303,-2111.8184,0.00021759,2]
[312078491,1705602638312,-2428.9975,0.00021759,2]
[312078492,1705602638322,-56317.4407,0.00021759,2]
[312078493,1705602638331,-251.1615,0.00021759,2]
[312078494,1705602638340,-157.35,0.00021789,2]
[312078495,1705602638350,-500.0,0.000218,2]
[312078496,1705602638360,-500.0,0.000218,2]
[312078497,1705602638370,-5120.2755,0.000218,2]
[312078498,1705602638379,-1497.8166228,0.00021812,2]
[312078499,1705602638389,-336.32780692,0.00021812,2]
[312078500,1705602638398,-353.59,0.00021826,2]
[312078501,1705602638407,-2515.54964616,0.00021857,2]
[312078502,1705602638418,-376.69873043,0.00021857,2]
[312078503,1705602638427,-1363.31682655,0.00021858,2]
[312078504,1705602638437,-155.0,0.00021858,2]
[312078505,1705602638446,-172.8586314,0.0002189,2]
[312078506,1705602638455,-500.0,0.00021899,2]
[312078507,1705602638464,-157.35,0.000219,2]
[312078508,1705602638473,-37436.35478504,0.000219,2]
[312078509,1705602638494,-284.1185386,0.000219,2]
[312078510,1705602638505,-415.0,0.000219,2]
[312078511,1705602638517,-416.41116,0.000219,2]
[312078512,1705602638528,-2513.74518397,0.000219,2]
[312078513,1705602638540,-1088.75862916,0.000219,2]
[312078514,1705602638558,-87210.13685647,0.000219,2]
[312078515,1705602638568,-66482.98521691,0.000219,2]
[312078518,1705602638587,-72351.45531397,0.000219,2]
[312078520,1705602638598,-121706.32290811,0.000219,2]
[312078522,1705602638612,-91367.04149855,0.000219,2]
[312078523,1705602638624,-11209.39044893,0.000219,2]
[312078524,1705602638636,-298.62800448,0.000219,2]
[312078525,1705602638700,-2776.99734937,0.000219,2]
[312078526,1705602638713,-1512.623474,0.000219,2]
[312078528,1705602638726,-1037.7367,0.000219,2]
[312078529,1705602639210,-3368.08959021,0.000219,2]
[312078530,1705602639222,-415.19,0.000219,2]
[312078531,1705602639238,-403.70016999,0.000219,2]
[312078532,1705602639249,-4153.225,0.000219,2]
[312078533,1705602639292,234.90330055,0.00021602,2]
[312078537,1705602640097,-268.3954459,0.000219,2]
[312078538,1705602640167,-1523.43243491,0.000219,2]
[312078539,1705602640179,-815.8300559,0.000219,2]
[312078540,1705602640191,-577.75896339,0.000219,2]
[312078541,1705602640203,-125445.3398943,0.000219,2]
[312078542,1705602640214,-615.44,0.00021912,2]
[312078543,1705602640223,-373.4,0.00021918,2]
[312078544,1705602640232,-250.0,0.00021918,2]
[312078545,1705602640242,-1250.0,0.00022,3]
[312078546,1705602640251,-2780.53772112,0.00022,2]
[312078547,1705602640261,-157.35,0.0002201,2]
[312078548,1705602640271,-615.44,0.00022076,2]
[312078549,1705602640281,-158.72,0.0002211,2]
[312078550,1705602640290,-157.35,0.0002212,2]
[312078551,1705602640300,-300.0,0.00022206,2]
[312078552,1705602640309,-157.35,0.0002223,2]
[312078553,1705602640318,-615.44,0.0002224,2]
[312078554,1705602640328,-336.32780692,0.00022256,2]
[312078555,1705602640337,-171.69,0.00022299,2]
[312078556,1705602640347,-76581.08541275,0.00022302,2]
[312078557,1705602642910,-319.39058797,0.00022302,2]
[312078575,1705602643205,-4150.0,0.00022302,2]
[312078577,1705602643216,-25072.01259928,0.00022302,2]
[312078579,1705602643226,-157.93,0.00022399,2]
[312078581,1705602643234,-615.44,0.00022404,2]
[312078583,1705602643244,-10000.0,0.00022445,2]
[312078585,1705602643253,-445.73,0.00022447,2]
[312078587,1705602643262,-158.72,0.00022482,2]
[312078588,1705602643271,-12298.83057596,0.000225,2]
[312078589,1705602643281,-471.33682496,0.00022567,2]
[312078590,1705602643442,-144.10317504,0.00022567,2]
[312078591,1705602643451,-350.66007833,0.00022662,2]
[312078592,1705602643462,-310.50049061,0.00022662,2]
[312078593,1705602643474,-155.98532929,0.00022662,2]
[312078594,1705602643484,-646.1423,0.00022662,2]
[312078595,1705602643494,-1003.2183,0.00022662,2]
[312078596,1705602643504,-1553.23994283,0.00022664,2]
[312078597,1705602643514,-1099.46387209,0.00022664,2]
[312078598,1705602643526,-453.77607073,0.00022664,2]
[312078599,1705602643535,-353.06507154,0.000227,2]
[312078600,1705602643545,-336.32780692,0.000227,2]
[312078601,1705602643555,-171.01279807,0.00022701,2]
[312078602,1705602643565,-615.44,0.00022731,2]
[312078603,1705602643574,-260.50122287,0.0002276,2]
[312078604,1705602643584,-206.51576742,0.0002276,2]
[312078605,1705602643593,-155.37660646,0.00022761,2]
[312078606,1705602643603,-1606.28465599,0.00022761,2]
[312078607,1705602643617,-392.88658677,0.00022761,2]
[312078608,1705602643629,-2619.7635029,0.00022761,2]
[312078609,1705602643639,-1040.8125891,0.00022762,2]
[312078610,1705602643648,-268.43974838,0.00022763,2]
[312078611,1705602643657,-2117.50120692,0.00022763,2]
[312078612,1705602643666,-720.68,0.00022765,2]
[312078613,1705602643676,-156.0,0.00022766,2]
[312078614,1705602643686,-353.72680467,0.00022767,2]
[312078615,1705602643695,-4907.21632641,0.0002277,2]
[312078616,1705602643704,-5000.0,0.000228,2]
[312078617,1705602643715,-1907.46006623,0.000228,2]
[312078618,1705602643727,-413.62453636,0.000228,2]
[312078619,1705602643738,-3203.48883391,0.000228,2]
[312078620,1705602643749,-239475.4265635,0.000228,2]
[312078621,1705602643759,-270.7643,0.000228,2]
[312078622,1705602643768,-353.59,0.00022805,2]
[312078623,1705602643777,-158.72,0.00022853,2]
[312078624,1705602643787,-5341.59924452,0.0002288,3]
[312078625,1705602643797,-556.94521149,0.0002288,2]
[312078626,1705602643807,-615.44,0.00022895,2]
[312078627,1705602643817,-523.8307,0.00022897,2]
[312078628,1705602643826,-20117.4608,0.00022897,2]
[312078629,1705602644042,-168.6025939,0.000229,2]
[312078630,1705602644052,-180.0,0.00022932,2]
[312078631,1705602644061,-1921.50475411,0.00022995,2]
[312078632,1705602644070,-240.33558274,0.00022995,2]
[312078633,1705602644079,-220.95063616,0.00022995,2]
[312078634,1705602644088,-1124.63119894,0.00022995,2]
[312078635,1705602644098,-204.29770103,0.00022995,2]
[312078636,1705602644107,-538.58822261,0.00022995,2]
[312078637,1705602644121,-155.0,0.00022995,2]
[312078638,1705602644131,-1248.44870117,0.00022995,2]
[312078639,1705602644141,-263.27381778,0.00022995,2]
[312078640,1705602644150,-336.95365617,0.00022995,2]
[312078641,1705602644160,-233.83861975,0.00022995,2]
[312078642,1705602644169,-232.92375042,0.00022995,2]
[312078643,1705602644179,-157.3878743,0.00022995,2]
[312078644,1705602644189,-342.86944527,0.00022995,2]
[312078645,1705602644198,-221.53171905,0.00022995,2]
[312078646,1705602644208,-155.0,0.00022995,2]
[312078647,1705602644218,-542.9635753,0.00022995,2]
[312078648,1705602644227,-155.0,0.00022995,2]
[312078649,1705602644236,-337.22386989,0.00022995,2]
[312078650,1705602644246,-250.02290447,0.00022995,2]
[312078651,1705602644255,-400.06896681,0.00022995,2]
[312078652,1705602644265,-913.69891953,0.00022995,2]
[312078653,1705602644274,-1254.8177837,0.00022995,2]
[312078654,1705602644282,-155.0,0.00022995,2]
[312078655,1705602644292,-6757.37432813,0.00022995,2]
[312078656,1705602644301,-177.63055213,0.00022995,2]
[312078657,1705602644310,-2108.96929926,0.00022995,2]
[312078658,1705602644320,-252.65442073,0.00022995,2]
[312078659,1705602644330,-155.0,0.00022995,2]
[312078660,1705602644339,-301.90910224,0.00022995,2]
[312078661,1705602644349,-155.0,0.00022995,2]
[312078662,1705602644359,-234.89781562,0.00022995,2]
[312078663,1705602644373,-975.73879934,0.00022995,2]
[312078664,1705602644382,-2605.4449966,0.00022995,2]
[312078665,1705602644393,-472.37771217,0.00022996,2]
[312078666,1705602644402,-309.727205,0.00022996,2]
[312078667,1705602644413,-1513.14775786,0.00022997,2]
[312078668,1705602644425,-155.0,0.00022997,2]
[312078669,1705602644434,-1103.36116153,0.00022998,2]
[312078670,1705602644443,-156.52420165,0.00022998,2]
[312078671,1705602644454,-999.99,0.00022998,2]
[312078672,1705602644464,-1000.0,0.00022998,2]
[312078673,1705602644474,-1002.74,0.00022998,2]
[312078674,1705602644483,-615.44,0.00023059,2]
[312078675,1705602644495,-157.93,0.00023059,2]
[312078676,1705602644505,-171.69,0.00023077,2]
[312078677,1705602644514,-615.44,0.00023223,2]
[312078678,1705602644524,-158.72,0.00023225,2]
[312078679,1705602644534,-10000.0,0.00023245,2]
[312078680,1705602644543,-615.44,0.00023387,2]
[312078681,1705602644558,-200.0,0.00023477,2]
[312078682,1705602644566,-348.0,0.00023478,2]
[312078683,1705602644576,-615.44,0.00023551,2]
[312078684,1705602644585,-300.0,0.00023576,2]
[312078685,1705602644595,-158.72,0.00023597,2]
[312078686,1705602644604,-169.51542771,0.00023602,2]
[312078687,1705602644614,-1000.0,0.00023659,2]
[312078688,1705602644626,-615.44,0.00023715,2]
[312078689,1705602644635,-157.93,0.0002372,2]
[312078690,1705602644644,-210.0,0.00023762,2]
[312078691,1705602644653,-353.59,0.00023783,2]
[312078692,1705602644662,-171.69,0.00023855,2]
[312078693,1705602644670,-615.44,0.00023879,2]
[312078694,1705602644679,-158.72,0.00023969,2]
[312078695,1705602644689,-155.0,0.00024,2]
[312078696,1705602644698,-201.13102968,0.00024,2]
[312078697,1705602644709,-431.53216335,0.00024,2]
[312078698,1705602644719,-1300.0,0.00024,3]
[312078699,1705602644729,-10000.0,0.00024046,2]
[312078700,1705602644738,-250.0,0.000241,2]
[312078701,1705602644748,-353.06507144,0.00024264,2]
[312078702,1705602644761,-167.0,0.00024297,2]
[312078703,1705602644771,-158.72,0.0002434,2]
[312078704,1705602644780,-157.93,0.00024381,2]
[312078705,1705602644790,-1497.81662274,0.00024395,2]
[312078706,1705602644800,-250.0,0.00024658,2]
[312078707,1705602644809,-158.72,0.00024712,2]
[312078709,1705602644818,-353.59,0.00024762,2]
[312078711,1705602644828,-10000.0,0.00024847,2]
[312078712,1705602644838,-1584.10702682,0.00025,2]
[312078713,1705602644847,-833.4189324,0.00025,2]
[312078714,1705602644856,-201.95095563,0.00025,2]
[312078715,1705602644869,-158.67264273,0.00025,2]
[312078716,1705602644879,-167.30708743,0.00025,2]
[312078717,1705602644888,-1248.86230478,0.00025,2]
[312078718,1705602644897,-303.34687539,0.00025,2]
[312078719,1705602644907,-157.93,0.00025042,2]
[312078720,1705602644917,-158.72,0.00025084,2]
[312078722,1705602644926,-167.0,0.00025099,2]
[312078723,1705602644934,-158.72,0.00025456,2]
[312078725,1705602644944,-169.51542771,0.00025702,2]
[312078727,1705602644953,-353.59,0.0002574,2]
[312078729,1705602644962,-348.0,0.00025742,2]
[312078731,1705602644972,-353.06507144,0.00025827,2]
[312078733,1705602644981,-158.72,0.00025827,2]
[312078735,1705602644990,-167.0,0.00025901,2]
[312078737,1705602644999,-5000.0,0.00026,2]
[312078739,1705602645008,-1350.0,0.00026,3]
[312078741,1705602645017,-650.0,0.00026,2]
[312078743,1705602645027,-104540.84702825,0.00026,2]
[312078744,1705602645036,-104540.84702825,0.00026,2]
[312078745,1705602645045,-200.0,0.00026085,2]
[312078746,1705602645054,-293.0,0.00026138,2]
[312078747,1705602645063,-1000.0,0.00026287,2]
[312078748,1705602645072,-738.01076694,0.00026447,2]
[312078749,1705602645081,-12425.64,0.00026575,2]
[312078750,1705602645091,-1383.77,0.00026591,2]
[312078751,1705602645101,-2367.07,0.00026591,2]
[312078752,1705602645110,-306.54,0.000267,2]
[312078753,1705602645122,-167.0,0.00026703,2]
[312078754,1705602645131,-353.59,0.00026718,2]
[312078755,1705602645140,-1497.81662274,0.00026977,3]
[312078756,1705602645149,-155.0,0.00027,2]
[312078757,1705602645158,-150.0,0.00027099,2]
[312078758,1705602645167,-28587.0,0.000271,2]
[312078759,1705602645176,-1560.98,0.00027123,2]
[312078760,1705602645185,-150.0,0.0002735,4]
[312078761,1705602645194,-353.06507144,0.00027391,2]
[312078762,1705602645204,-1802.91,0.00027397,2]
[312078763,1705602645213,-3000.0,0.00027397,2]
[312078764,1705602645223,-3000.0,0.00027397,2]
[312078765,1705602645232,-4878.6747,0.00027397,2]
[312078766,1705602645241,-5632.93,0.00027397,2]
[312078767,1705602645251,-150.0,0.00027397,2]
[312078768,1705602645260,-164.07,0.00027397,2]
[312078769,1705602645269,-8000.0,0.000274,2]
[312078770,1705602645279,-252.52,0.000274,2]
[312078771,1705602645289,-252.52,0.000274,2]
[312078772,1705602645299,-252.52,0.000274,2]
[312078773,1705602645308,-252.52,0.000274,2]
[312078774,1705602645318,-252.52,0.000274,2]
[312078775,1705602645327,-252.52,0.000274,2]
[312078776,1705602645337,-252.52,0.000274,2]
[312078777,1705602645347,-252.52,0.000274,2]
[312078778,1705602645356,-167.0,0.00027505,2]
[312078779,1705602645369,-150.0,0.000276,7]
[312078780,1705602645379,-353.59,0.00027697,2]
[312078781,1705602645391,-169.51542771,0.00027801,2]
[312078782,1705602645404,-150.0,0.00027851,7]
[312078784,1705602645414,-688.79473801,0.00028,2]
[312078785,1705602645424,-203.0550109,0.00028,2]
[312078786,1705602645435,-1400.0,0.00028,3]
[312078787,1705602645444,-200.0,0.00028,2]
[312078788,1705602645454,-348.0,0.00028006,2]
[312078789,1705602645463,-150.0,0.00028102,7]
[312078790,1705602645476,-150.0,0.00028118,2]
[312078791,1705602645486,-167.0,0.00028307,2]
[312078792,1705602645496,-150.0,0.00028353,7]
[312078794,1705602645506,-200.0,0.00028393,3]
[312078795,1705602645515,-1046.0,0.00028522,5]
[312078796,1705602645524,-150.0,0.00028604,7]
[312078797,1705602645533,-353.59,0.00028675,2]
[312078798,1705602645542,-200.0,0.00028694,2]
[312078799,1705602645551,-1802.91,0.00028767,2]
[312078800,1705602645560,-1351.7908237,0.00028786,7]
[312078801,1705602645569,-8000.0,0.000288,2]
[312078802,1705602645579,-150.0,0.00028839,2]
[312078803,1705602645589,-150.0,0.00028855,7]
[312078804,1705602645598,-1000.0,0.00028916,2]
[312078805,1705602645608,-353.06507144,0.00028955,2]
[312078806,1705602645620,-155.0,0.00029,2]
[312078807,1705602645630,-352.54,0.00029,2]
[312078808,1705602645639,-151.03074467,0.00029,2]
[312078809,1705602645649,-500.0,0.00029,2]
[312078810,1705602645659,-505.64,0.00029,7]
[312078811,1705602645670,-250.0,0.00029,2]
[312078812,1705602645680,-150.0,0.00029,2]
[312078813,1705602645689,-3998.24822688,0.00029,2]
[312078814,1705602645701,-150.0,0.00029023,2]
[312078815,1705602645712,-150.0,0.00029106,7]
[312078816,1705602645722,-250.0,0.00029274,2]
[312078817,1705602645732,-325.54,0.00029277,2]
[312078818,1705602645742,-150.0,0.00029357,7]
[312078819,1705602645752,-2271.0,0.00029485,2]
[312078820,1705602645761,-4956.291,0.00029485,2]
[312078821,1705602645771,-924.31,0.00029485,2]
[312078822,1705602645780,-403.0,0.00029485,2]
[312078823,1705602645790,-36518.318,0.00029485,2]
[312078824,1705602645799,-19688.0,0.00029485,2]
[312078825,1705602645809,-2903.0,0.00029485,2]
[312078826,1705602645819,-1220.031,0.00029485,2]
[312078827,1705602645829,-4170.0,0.00029485,2]
[312078828,1705602645838,-844.311,0.00029485,2]
[312078829,1705602645848,-835.0,0.00029485,2]
[312078830,1705602645859,-1029.0,0.00029485,2]
[312078831,1705602645871,-1852.0,0.00029485,2]
[312078832,1705602645880,-945.0,0.00029485,2]
[312078833,1705602645891,-1822.051,0.00029485,2]
[312078834,1705602645901,-155.0,0.000295,3]
[312078835,1705602645911,-150.0,0.00029548,2]
[312078836,1705602645920,-1497.81662274,0.0002956,4]
[312078837,1705602645929,-150.0,0.0002956,2]
[312078838,1705602645938,-150.0,0.00029608,7]
[312078839,1705602645947,-507.0,0.00029625,2]
[312078840,1705602645956,-235.0,0.00029625,2]
[312078841,1705602645965,-373.279,0.00029625,2]
[312078842,1705602645975,-849.028,0.00029625,2]
[312078843,1705602645984,-718.971,0.00029625,2]
[312078844,1705602645993,-353.59,0.00029654,2]
[312078845,1705602646002,-730.99997995,0.000298,2]
[312078846,1705602646011,-175.50184765,0.000298,2]
[312078847,1705602646020,-150.0,0.00029859,7]
[312078848,1705602646030,-533.99423876,0.00029899,2]
[312078849,1705602646039,-2000.0,0.000299,3]
[312078850,1705602646048,-169.51542771,0.000299,2]
[312078851,1705602646057,-2829.6428496,0.000299,2]
[312078852,1705602646066,-172.8586314,0.0002999,2]
[312078853,1705602646075,-252.52,0.0002999,2]
[312078854,1705602646084,-252.52,0.0002999,2]
[312078855,1705602646093,-172.8586314,0.0002999,2]
[312078856,1705602646103,-1503.46,0.00029999,2]
[312078857,1705602646112,-1503.46,0.00029999,2]
[312078858,1705602646124,-1503.46,0.00029999,2]
[312078859,1705602646133,-1503.46,0.00029999,2]
[312078860,1705602646141,-1503.46,0.00029999,2]
[312078861,1705602646150,-1503.46,0.00029999,2]
[312078862,1705602646159,-1503.46,0.00029999,2]
[312078863,1705602646168,-1503.46,0.00029999,2]
[312078864,1705602646177,-1503.46,0.00029999,2]
[312078865,1705602646186,-1503.46,0.00029999,2]
[312078866,1705602646195,-500.0,0.00029999,2]
[312078867,1705602646205,-579.68160779,0.00029999,2]
[312078868,1705602646214,-500.0,0.00029999,2]
[312078869,1705602646224,-500.0,0.00029999,2]
[312078870,1705602646234,-500.0,0.00029999,2]
[312078871,1705602646243,-500.0,0.00029999,2]
[312078872,1705602646254,-495.40829236,0.00029999,2]
[312078873,1705602646263,-1352267.35284327,0.0003,3]
[312078874,1705602646272,-1267.19938805,0.0003,4]
[312078875,1705602646282,-9637.69139965,0.0003,2]
[312078876,1705602646290,-463.54889756,0.0003,4]
[312078877,1705602646300,-296.09559786,0.0003,2]
[312078878,1705602646309,-6860.89000775,0.0003,4]
[312078879,1705602646318,-309.8564897,0.0003,4]
[312078880,1705602646328,-905.41355492,0.0003,4]
[312078881,1705602646338,-2162.8756008,0.0003,4]
[312078882,1705602646352,-158.81680773,0.0003,4]
[312078883,1705602646362,-582.53618936,0.0003,2]
[312078884,1705602646373,-308857.21845126,0.0003,4]
[312078885,1705602646382,-814.18421461,0.0003,4]
[312078886,1705602646393,-26670.81930233,0.0003,4]
[312078887,1705602646402,-2580.94083119,0.0003,4]
[312078888,1705602646411,-72920.57629857,0.0003,4]
[312078889,1705602646423,-374.85495157,0.0003,4]
[312078890,1705602646433,-155.0,0.0003,4]
[312078891,1705602646442,-155.0,0.0003,2]
[312078892,1705602646451,-19026.01005334,0.0003,4]
[312078893,1705602646460,-2552.9863992,0.0003,4]
[312078894,1705602646469,-1575.05989741,0.0003,2]
[312078895,1705602646478,-770.36519149,0.0003,2]
[312078896,1705602646488,-1450.0,0.0003,3]
[312078897,1705602646498,-251.82514127,0.000301,4]
[312078898,1705602646507,-8000.0,0.000301,2]
[312078899,1705602646516,-150.0,0.0003011,7]
[312078900,1705602646525,-4543.60611658,0.0003012,7]
[312078901,1705602646534,-8744.12847235,0.0003012,7]
[312078902,1705602646544,-6458.50351512,0.0003012,7]
[312078903,1705602646553,-322.92517576,0.0003012,3]
[312078904,1705602646564,-2578.17507809,0.0003012,7]
[312078905,1705602646582,-1802.91,0.00030136,2]
[312078906,1705602646590,-153.84,0.00030137,2]
[312078907,1705602646600,-348.0,0.0003027,2]
[312078908,1705602646609,-150.0,0.00030281,2]
[312078909,1705602646620,-947.42022603,0.00030341,7]
[312078910,1705602646628,-374.84296588,0.00030341,7]
[312078911,1705602646637,-327.50536183,0.00030341,7]
[312078912,1705602646646,-294.70540064,0.00030341,7]
[312078913,1705602646656,-220.23355197,0.00030341,7]
[312078914,1705602646665,-956.81448499,0.00030341,7]
[312078915,1705602646674,-667.43359407,0.00030341,7]
[312078916,1705602646683,-155.0,0.0003037,2]
[312078917,1705602646692,-353.06507144,0.00030518,2]
[312078918,1705602646702,-353.59,0.00030632,2]
[312078919,1705602646711,-300.0,0.00030987,2]
[312078920,1705602646720,-150.0,0.00031002,2]
[312078921,1705602646730,-153.84,0.0003105,2]
[312078922,1705602646739,-882.51026674,0.000311,2]
[312078923,1705602646748,-800.0,0.00031181,7]
[312078924,1705602646757,-200.0,0.00031302,2]
[312078925,1705602646766,-1000.0,0.000315,2]
[312078926,1705602646775,-4000.0,0.000315,2]
[312078927,1705602646785,-1802.91,0.00031506,2]
[312078928,1705602646794,-408.74,0.00031507,2]
[312078929,1705602646803,-1000.0,0.00031545,2]
[312078930,1705602646812,-353.59,0.00031611,2]
[312078931,1705602646822,-197.4,0.00031644,2]
[312078933,1705602646831,-150.0,0.00031723,2]
[312078935,1705602646840,-155.0,0.0003174,2]
[312078937,1705602646849,-168.88314372,0.00031797,2]
[312078939,1705602646858,-366824.660944,0.000318,2]
[312078941,1705602646869,-5000.0,0.0003189,2]
[312078943,1705602646878,-153.84,0.00031963,2]
[312078945,1705602646887,-300.0,0.00031987,2]
[312078947,1705602646896,-942.53099387,0.00032,4]
[312078949,1705602646907,-12167.46803838,0.00032,4]
[312078952,1705602646917,-715.50694667,0.00032,8]
[312078954,1705602646927,-353.06507144,0.00032082,3]
[312078956,1705602646937,-1497.81662274,0.00032142,5]
[312078958,1705602646946,-1093.80519563,0.0003234,3]
[312078959,1705602646955,-150.0,0.00032444,2]
[312078961,1705602646964,-1029.0,0.00032485,2]
[312078963,1705602646973,-348.0,0.00032534,2]
[312078965,1705602646982,-6845.91795514,0.00032547,2]
[312078967,1705602646991,-353.59,0.00032589,2]
[312078969,1705602647000,-500.0,0.00032876,2]
[312078971,1705602647009,-1802.91,0.00032876,2]
[312078973,1705602647018,-153.84,0.00032877,2]
[312078975,1705602647027,-500.0,0.00032877,2]
[312078977,1705602647036,-1117.74,0.00032877,15]
[312078979,1705602647046,-4000.0,0.000329,2]
[312078982,1705602647057,-1366.0,0.000329,2]
[312078983,1705602647066,-480.0,0.000329,2]
[312078986,1705602647076,-200.0,0.00032987,2]
[312078987,1705602647085,-200.0,0.00032987,3]
[312078988,1705602647095,-155.0,0.00033,4]
[312078989,1705602647104,-169.0,0.00033,2]
[312078990,1705602647114,-155.0,0.0003311,2]
[312078991,1705602647125,-169.0,0.00033151,2]
[312078992,1705602647134,-150.0,0.00033165,2]
[312078993,1705602647143,-168.6025939,0.00033355,2]
[312078994,1705602647153,-364.25149533,0.000335,4]
[312078995,1705602647162,-353.59,0.00033568,2]
[312078996,1705602647172,-353.06507144,0.00033645,5]
[312078997,1705602647182,-10000.0,0.00033676,2]
[312078998,1705602647191,-500.0,0.00033698,2]
[312078999,1705602647201,-75000.0,0.00033781,15]
[312079000,1705602647210,-153.84,0.0003379,2]